Cogmind - Beta 13 @@@ ROGUE MODE // 2024.04.30 @ 20:59:19 Player: szymekc Result: Destroyed self with Grenade Launcher Performance ------------- Evolutions (2) 1000 Regions Visited (7) 1400 Robots Destroyed (156) 780 Value Destroyed (7307) 7307 Prototype IDs (17) 340 Alien Tech Used (0) 0 Bonus (2328) 2328 TOTAL SCORE: 13155 Bonus ------- High Alert Combat Kills 1315 Follower Combat Kills 165 Entered Garrisons 400 Used RIF Installer 500 Friendly Fire -52 Cogmind --------- Core Integrity 0/550 Matter 205/300 Energy 160/160 System Corruption 0% Temperature Cool (0) Movement Rolling (130) Ox2 Location -8/Garrison Parts ------- > --- POWER (1) -------- Light Nuclear Core > --- PROPULSION (4) --- Armored Huge Wheel Armored Huge Wheel > --- UTILITY (4) ------ Cooling System Cargo Storage Unit > --- WEAPON (2) ------- (None) > --- INVENTORY (30) --- Light Nuclear Core Armored Huge Wheel Armored Huge Wheel Improved Heat Sink Cargo Storage Unit High-capacity Matter Pod (200) Machine Analyzer Improved Signal Interpreter Hacking Suite Hacking Suite Authchip [Processor] Authchip [Weapon] Relay Coupler [NC] (29) Relay Coupler [NC] (24) Relay Coupler [NC] (27) Relay Coupler [NC] (28) Relay Coupler [NC] (28) Relay Coupler [NC] (25) Relay Coupler [Brawler] (23) Long-range Tractor Beam Heavy Ion Cannon Heavy Ion Cannon Heavy Ion Cannon Powered Cannon Improved Datajack Flail Peak State ------------ > --- POWER ------------ Light Deuterium Engine > --- PROPULSION ------- Armored Huge Wheel Armored Huge Wheel > --- UTILITY ---------- Improved Heat Sink Huge Storage Unit Improved Weapon Shielding Light Armor Plating > --- WEAPON ----------- Heavy Ion Cannon Heavy Ion Cannon > --- INVENTORY -------- Light Nuclear Core Armored Huge Wheel Armored Huge Wheel Improved Heat Sink Cooling System High-capacity Matter Pod Machine Analyzer Improved Sensor Array Improved Signal Interpreter Hacking Suite Authchip [Processor] Authchip [Weapon] Relay Coupler [NC] Relay Coupler [NC] Relay Coupler [Swarmer] Relay Coupler [Grunt] Relay Coupler [Sentry] Relay Coupler [Hunter] Relay Coupler [Behemoth] Powered Cannon Grenade Launcher Flail [Rating: 43] Favorites ----------- Power Light Nuclear Core Engine Light Angular Momentum Engine Power Core Light Nuclear Core Propulsion Light Treads Treads Light Treads Leg Aluminum Leg Wheel Armored Huge Wheel Utility High-capacity Storage Unit Device Cooling System Storage High-capacity Storage Unit Protection Light Armor Plating Weapon Particle Cannon Energy Gun Medium Laser Energy Cannon Particle Cannon Ballistic Gun Minigun Ballistic Cannon Battle Cannon Launcher Grenade Launcher Special Weapon Mining Laser Impact Weapon Hammer Special Melee Weapon Improved Datajack Build | -11 -10 -10 -10 -8 -8 -8 -8 ------- Run | Yrd Mat Min Sub Mat Gar Mat Gar Slots Evolved 4 | . . . . 4 . . . Power . | . . . . . . . . Propulsion 2 | . . . . 2 . . . Utility 2 | . . . . 2 . . . Weapon . | . . . . . . . . Parts Attached 140 | 1 23 7 16 27 39 15 12 Power 13 | . 2 3 2 2 2 1 1 Engine 7 | . 2 2 1 1 . 1 . Core 6 | . . 1 1 1 2 . 1 Reactor . | . . . . . . . . Propulsion 31 | . 4 . 4 11 8 4 . Treads 27 | . 4 . 4 9 8 2 . Leg 1 | . . . . 1 . . . Wheel 3 | . . . . 1 . 2 . Hover . | . . . . . . . . Flight . | . . . . . . . . Utility 35 | 1 5 . 4 11 7 4 3 Device 14 | 1 3 . . 4 3 1 2 Storage 7 | . 2 . 1 3 . 1 . Processor . | . . . . . . . . Hackware . | . . . . . . . . Protection 14 | . . . 3 4 4 2 1 Artifact . | . . . . . . . . Weapon 61 | . 12 4 6 3 22 6 8 Energy Gun 2 | . 2 . . . . . . Energy Cannon 22 | . 4 3 6 3 . 3 3 Ballistic Gun 10 | . 3 . . . 7 . . Ballistic Cannon 3 | . . . . . 2 1 . Launcher 11 | . . 1 . . 6 1 3 Special Weapon 3 | . 3 . . . . . . Impact Weapon 9 | . . . . . 7 1 1 Slashing Weapon . | . . . . . . . . Piercing Weapon . | . . . . . . . . Special Melee Weapon 1 | . . . . . . . 1 Unidentified Prototypes 1 | . 1 . . . . . . Parts Lost 19 | . 1 . 4 4 6 . 4 Power 2 | . . . 1 . 1 . . Propulsion 4 | . . . 2 1 1 . . Utility 8 | . 1 . . 2 3 . 2 Weapon 5 | . . . 1 1 1 . 2 Highest Loss Streak 3 | . 1 . 2 2 2 . 3 To Critical Strikes 1 | . . . . 1 . . . Average Slot Usage (%) 92 | . 99 100 92 92 92 88 71 Engine 6 | . 14 12 7 2 . 6 3 Core 4 | . . 1 3 6 8 2 5 Treads 25 | . 23 28 28 27 34 15 . Wheel 1 | . . . . . . 10 18 Device 8 | . 14 14 . 17 8 9 15 Storage 10 | . 14 14 10 9 9 9 9 Protection 8 | . . . 13 9 12 16 2 Energy Cannon 19 | . 19 26 27 18 4 9 17 Ballistic Gun 2 | . 7 . . . 5 3 . Impact Weapon 1 | . . . . . 5 4 . Naked Turns . | . . . . . . . . Heaviest Build 166 | 13 55 59 64 117 103 166 166 Greatest Support 80 | 20 40 40 40 80 80 80 56 Greatest Overweight (x) 27 | . 18 1 1 5 27 3 2 Average Overweight (x) . | . . 1 . . 1 1 2 Largest Inventory Capacity 30 | 8 20 20 20 25 25 30 30 Average Capacity 20 | 8 15 20 15 21 25 25 30 Most Carried 30 | 6 20 20 20 24 25 29 30 Average Carried 18 | 6 14 19 13 20 24 25 29 Final Capacity 30 | 8 20 20 20 25 25 30 30 Final Carried 30 | 6 20 20 20 24 25 29 30 Class Distribution -------------------- 64% | Mutant 26% | Scavenger-Mutant 7% | Bothacker-Mutant Dominant Class ---------------- Mutant | -10/Materials Mutant | -10/Mines Mutant | -10/Subcaves Scavenger-Mutant | -8/Materials Scavenger-Mutant | -8/Garrison Scavenger-Mutant | -8/Materials Bothacker-Mutant | -8/Garrison Resources | -11 -10 -10 -10 -8 -8 -8 -8 ----------- Run | Yrd Mat Min Sub Mat Gar Mat Gar Matter Collected 2349 | 213 335 278 175 240 771 202 135 Remotely . | . . . . . . . . Salvage Created 5717 | 10 707 261 674 1617 833 687 928 Parts 314 | 4 41 15 41 75 58 38 42 Haulers Intercepted 6 | . 2 . . 2 . 2 . Recyclers Shooed 2 | . 1 . . . . 1 . Parts Field Recycled . | . . . . . . . . Retrieved Matter . | . . . . . . . . Parts Self-Destructed 22 | . . . 22 . . . . Prevented 1 | . . . 1 . . . . Kills | -11 -10 -10 -10 -8 -8 -8 -8 ------- Run | Yrd Mat Min Sub Mat Gar Mat Gar Combat Hostiles Destroyed 141 | . 14 8 16 28 38 14 23 Melee 2 | . . . . . 2 . . Guns 19 | . 7 . . . 10 2 . Cannons 74 | . 6 5 12 25 2 9 15 AOE 36 | . . 3 . 1 23 2 7 Classes Destroyed 15 | 1 6 1 2 4 1 . . Worker 3 | . 2 . . 1 . . . Tunneler 1 | 1 . . . . . . . Hauler 6 | . 2 . . 2 . 2 . Recycler 1 | . . . . 1 . . . Operator 2 | . 1 . . . . 1 . Watcher 2 | . 2 . . . . . . Swarmer 37 | . 3 3 2 . 19 4 6 Saboteur 2 | . . . . . 2 . . Grunt 57 | . 11 4 . 15 12 6 9 Brawler 4 | . . . . 2 1 . 1 Duelist 1 | . . . . 1 . . . Sentry 22 | . . 1 1 8 4 2 6 Hunter 5 | . . . . 2 . 2 1 Artisan 1 | . . . 1 . . . . Subdweller 13 | . . . 13 . . . . Best Kill Streak 8 | 1 4 3 2 7 8 4 6 Combat Bots Only 8 | . 3 3 2 7 8 4 6 Max Kills in Single Turn 4 | 1 1 2 1 2 4 2 2 Gunslinging . | . . . . . . . . Exploded 4 | . . 2 . 1 4 2 1 Melee 1 | . . . . . 1 . . Uniques/NPCs Destroyed . | . . . . . . . . Combat | -11 -10 -10 -10 -8 -8 -8 -8 -------- Run | Yrd Mat Min Sub Mat Gar Mat Gar Hostile Shots Fired 495 | . 48 7 87 145 91 46 71 Missed 151 | . 14 4 30 48 22 10 23 Damage Taken 5209 | . 401 44 1138 1449 925 517 735 Core 693 | . 21 5 114 218 118 62 155 Absorbed by Shields 49 | . . . . 40 . . 9 Redirected to Shielding 80 | . . . . . . 80 . Ignored by Resistances 51 | . . . . 51 . . . Core Remaining (%) 72 | 100 . . 44 . . . . Volleys Fired 364 | 1 57 17 61 68 58 40 62 Largest 2 | 2 2 2 2 2 2 2 2 Hottest 160 | 70 112 136 160 148 98 130 130 Shots Fired 598 | 2 103 32 85 127 82 63 104 Gun 113 | 2 58 . . . 45 8 . Cannon 443 | . 40 30 85 127 16 54 91 Launcher 37 | . . 2 . . 21 1 13 Special 5 | . 5 . . . . . . Kinetic 117 | 1 58 . . . 50 8 . Thermal 378 | 1 5 30 59 127 11 54 91 Explosive 37 | . . 2 . . 21 1 13 Electromagnetic 66 | . 40 . 26 . . . . Robot Hit Streak 17 | 1 7 5 11 16 9 10 17 Robot Miss Streak 5 | . 4 1 3 3 2 5 4 Penetration Max . | . . . . . . . . Secondary Targets 1 | . . . . . 1 . . Max Gunslinging Chain 1 | . . . . . 1 . . Shots Hit Robots 353 | 1 53 11 53 88 44 49 54 Core Hits 217 | 1 29 10 15 44 53 23 42 Critical Kills 5 | . . . 2 2 . . 1 Critical Parts Destroyed 3 | . . . . . 2 1 . Critical Strikes 8 | . . . 2 2 2 1 1 Meltdown 5 | . . . 2 2 . . 1 Smash 3 | . . . . . 2 1 . Melee Attacks 50 | . . . . . 37 11 2 Impact 49 | . . . . . 37 11 1 Slashing . | . . . . . . . . Piercing . | . . . . . . . . Sneak Attacks 2 | . . . . . . 2 . Combat Hostiles . | . . . . . . . . Follow-up Attacks . | . . . . . . . . Damage Inflicted 11228 | 12 1211 331 1186 2322 2334 1479 2353 Guns 1130 | 12 379 . . . 633 106 . Cannons 6852 | . 692 228 1186 2163 134 992 1457 Explosions 2871 | . 118 102 . 144 1506 105 896 Melee 337 | . . . . . 61 276 . Ramming 38 | . 22 1 . 15 . . . Kinetic 1188 | . 379 . . . 703 106 . Thermal 5818 | 12 118 228 784 2163 64 992 1457 Explosive 2753 | . . 102 . 144 1506 105 896 Electromagnetic 1094 | . 692 . 402 . . . . Impact 337 | . . . . . 61 276 . Slashing . | . . . . . . . . Piercing . | . . . . . . . . Highest Corruption . | . . . . . . . . Average Corruption . | . . . . . . . . Corruption Purged . | . . . . . . . . Corruption Blocked . | . . . . . . . . Overload Shots . | . . . . . . . . Overflow Damage 195 | . 18 2 10 28 48 45 44 Projectiles 76 | . 18 . 10 28 . . 20 Explosions 34 | . . 2 . . 8 . 24 Melee 85 | . . . . . 40 45 . Knockbacks . | . . . . . . . . Impact . | . . . . . . . . Kinetic . | . . . . . . . . Secondary . | . . . . . . . . Self-Inflicted Damage 323 | . . . . 87 141 16 79 Shots 13 | . . . . 1 7 1 4 Rammed 8 | . 4 1 . 3 . . . Targets Rammed 9 | . 5 1 . 3 . . . Kicked 1 | . 1 . . . . . . Crushed . | . . . . . . . . Highest Temperature 228 | 9 45 105 216 228 47 23 7 Average Temperature 39 | 6 13 35 57 53 15 14 3 Received Heat Transfer 1911 | . 207 18 255 681 306 207 237 Siege Activations . | . . . . . . . . Robots Corrupted 3 | . 1 . 2 . . . . Combat Hostiles 3 | . 1 . 2 . . . . Parts Fried 6 | . 4 . 2 . . . . Impact Corruptions 5 | . . . . . 2 3 . Robots Melted 5 | . . . 2 2 . . 1 Combat Hostiles 5 | . . . 2 2 . . 1 Parts Melted 23 | . . 4 6 5 . 3 5 Heat Transferred 8686 | 37 250 407 1184 3404 111 1332 1961 Parts Sabotaged 12 | . . . . . 12 . . Parts Stolen . | . . . . . . . . Parts Stripped . | . . . . . . . . Power Chain Reactions 2 | . 2 . . . . . . Alert | -11 -10 -10 -10 -8 -8 -8 -8 ------- Run | Yrd Mat Min Sub Mat Gar Mat Gar Peak Influence 2175 | 5 205 105 . 492 2175 1139 1684 Initial 1060 | . 3 53 . 70 319 1060 740 Average 613 | 3 95 50 . 213 1226 902 1139 Maximum Alert Level 5 | . 1 . . 2 5 4 5 Low Security (%) 43 | 100 88 100 . 53 . . . Level 1 10 | . 11 . . 40 11 . . Level 2 4 | . . . . 5 14 . . Level 3 18 | . . . . . 18 94 44 Level 4 13 | . . . . . 26 5 53 Level 5 8 | . . . . . 29 . 2 High Security . | . . . . . . . . Max Security . | . . . . . . . . Squads Dispatched 13 | . 3 . . 6 . 4 . Investigation 4 | . 2 . . . . 2 . Extermination . | . . . . . . . . Reinforcement 6 | . 1 . . 3 . 2 . Assault . | . . . . . . . . Garrison 3 | . . . . 3 . . . Intercept . | . . . . . . . . Searches Triggered . | . . . . . . . . Construction Impeded 1 | . . . . 1 . . . Haulers Reinforced . | . . . . . . . . Active Scanning Responses . | . . . . . . . . Cargo Convoy Interrupts . | . . . . . . . . Stealth | -11 -10 -10 -10 -8 -8 -8 -8 --------- Run | Yrd Mat Min Sub Mat Gar Mat Gar Distress Signals 8 | . 1 . . 3 . 4 . Communications Jammed . | . . . . . . . . Distress Signals . | . . . . . . . . Times Spotted 188 | . 26 10 17 38 41 25 31 Peak Tracking Total 8 | . 5 2 4 8 5 4 7 Tactical Retreats 12 | . . 2 2 3 1 2 2 Traps | -11 -10 -10 -10 -8 -8 -8 -8 ------- Run | Yrd Mat Min Sub Mat Gar Mat Gar Traps Triggered 16 | . 1 . 4 . 7 1 3 Indirectly . | . . . . . . . . Trap Hack Attempts . | . . . . . . . . Triggered . | . . . . . . . . Disarmed . | . . . . . . . . Reprogrammed . | . . . . . . . . Reused . | . . . . . . . . Traps Extracted . | . . . . . . . . Installed . | . . . . . . . . Triggered 2 | . . 2 . . . . . Machines | -11 -10 -10 -10 -8 -8 -8 -8 ---------- Run | Yrd Mat Min Sub Mat Gar Mat Gar Machines Disabled 23 | . 3 . 1 2 8 . 9 Max in Single Turn 2 | . 2 . 1 2 2 . 1 Garrison Relay 10 | . . . . . 6 . 4 Phase Generator 1 | . . . . . 1 . . Machines Repaired . | . . . . . . . . Machines Dismantled . | . . . . . . . . Machines Sabotaged . | . . . . . . . . Overloaded Fab Kills . | . . . . . . . . Hacking | -11 -10 -10 -10 -8 -8 -8 -8 --------- Run | Yrd Mat Min Sub Mat Gar Mat Gar Machines Accessed 28 | . 9 1 2 7 2 5 2 Terminals 19 | . 7 . . 5 2 3 2 Fabricators . | . . . . . . . . Repair Stations . | . . . . . . . . Recycling Units 4 | . 2 . . 1 . 1 . Scanalyzers . | . . . . . . . . Garrison Access 2 | . . . . 1 . 1 . Total Hacks 75 | . 29 1 11 20 4 8 2 Successful 49 | . 17 1 11 10 2 7 1 Failed 26 | . 12 . . 10 2 1 1 Catastrophic 3 | . . . . 1 . 1 1 Database Lockouts . | . . . . . . . . Manual 32 | . 14 . . 13 . 5 . Terminals 48 | . 23 . . 13 4 6 2 Fabricators . | . . . . . . . . Repair Stations . | . . . . . . . . Recycling Units 12 | . 6 . . 5 . 1 . Scanalyzers . | . . . . . . . . Garrison Access 3 | . . . . 2 . 1 . Terminal Hacks 31 | . 9 1 11 5 2 2 1 Record 10 | . . . 10 . . . . Part Schematic 1 | . 1 . . . . . . Robot Analysis 3 | . 2 . . 1 . . . Prototype ID Bank 4 | . 2 . . 2 . . . Open Door 3 | . . 1 . . 1 . 1 Emergency Access Points 1 | . . . . . 1 . . Unreport Threat 3 | . . . . 1 . 2 . Locate Traps 2 | . 2 . . . . . . Hauler Manifests 2 | . 1 . . 1 . . . Zone Layout 1 | . 1 . . . . . . Derelict Proto ID Bank 1 | . . . 1 . . . . Fabricator Hacks . | . . . . . . . . Repair Station Hacks . | . . . . . . . . Recycling Unit Hacks 3 | . 2 . . 1 . . . Retrieve Components 3 | . 2 . . 1 . . . Scanalyzer . | . . . . . . . . Garrison Access Hacks 2 | . . . . 1 . 1 . Unlock Access 2 | . . . . 1 . 1 . Unauthorized Hacks 13 | . 6 . . 3 . 4 . Terminals 10 | . 4 . . 3 . 3 . Track 3 | . 2 . . . . 1 . Botnet 4 | . 2 . . 2 . . . Disrupt 1 | . . . . . . 1 . Operators 2 | . . . . 1 . 1 . Fabricators . | . . . . . . . . Repair Stations . | . . . . . . . . Recycling Units 3 | . 2 . . . . 1 . Tunnel 3 | . 2 . . . . 1 . Scanalyzers . | . . . . . . . . Garrison Access . | . . . . . . . . Data Cores Recovered . | . . . . . . . . Used . | . . . . . . . . Hacking Detections 20 | . 7 . . 7 1 4 1 Full Trace Events . | . . . . . . . . Feedback Events . | . . . . . . . . Feedback Blocked . | . . . . . . . . Robot Schematics Acquired . | . . . . . . . . Robots Built . | . . . . . . . . Authchips . | . . . . . . . . Time . | . . . . . . . . Total Robot Build Rating . | . . . . . . . . Part Schematics Acquired 1 | . 1 . . . . . . Parts Built . | . . . . . . . . Authchips . | . . . . . . . . Time . | . . . . . . . . Total Part Build Rating . | . . . . . . . . Parts Repaired . | . . . . . . . . Time . | . . . . . . . . Parts Recycled . | . . . . . . . . Recycled Matter . | . . . . . . . . Retrieved Matter . | . . . . . . . . Retrieved Components 20 | . 11 . . 9 . . . Parts Scanalyzed . | . . . . . . . . Part Schematics Acquired . | . . . . . . . . Parts Damaged . | . . . . . . . . Bothacking | -11 -10 -10 -10 -8 -8 -8 -8 ------------ Run | Yrd Mat Min Sub Mat Gar Mat Gar Used RIF Installer 1 | . . . . . 1 . . Robots Hacked . | . . . . . . . . Non-combat . | . . . . . . . . Combat . | . . . . . . . . Robot Hacks Applied . | . . . . . . . . Relay Couplers Released 41 | . . . . . 24 . 17 Machine Destruction 41 | . . . . . 24 . 17 Fabnet Peak Effective % . | . . . . . . . . Robots Rewired . | . . . . . . . . Allies Hacked . | . . . . . . . . Hacks Repelled . | . . . . . . . . Allies | -11 -10 -10 -10 -8 -8 -8 -8 -------- Run | Yrd Mat Min Sub Mat Gar Mat Gar Total Allies 3 | . . . . . 1 . 2 Largest Group 2 | . . . . . 1 1 2 Highest-Rated Group 70 | . . . . . 31 31 70 Highest-Rated Ally 39 | . . . . . 31 31 39 Total Orders . | . . . . . . . . Ally Attacks 28 | . . . . . 1 8 19 Total Damage 390 | . . . . . 22 105 263 Kills 6 | . . . . . 1 1 4 Allies Corrupted . | . . . . . . . . Allies Melted . | . . . . . . . . Intel | -11 -10 -10 -10 -8 -8 -8 -8 ------- Run | Yrd Mat Min Sub Mat Gar Mat Gar Robot Analysis Total 3 | . 2 . . 1 . . . Derelict Logs Recovered 3 | . . 2 1 . . . . Drone Launches . | . . . . . . . . Drone Recoveries . | . . . . . . . . Exploration | -11 -10 -10 -10 -8 -8 -8 -8 ------------- Run | Yrd Mat Min Sub Mat Gar Mat Gar Turns Passed 12851 | 24 1987 1477 4156 970 2535 776 926 Spaces Moved 5365 | 17 874 568 1829 303 895 367 512 Core 5 | . 1 . . . 4 . . Treads 4388 | . 689 568 1829 293 891 118 . Legs 206 | 17 184 . . 5 . . . Wheels 766 | . . . . 5 . 249 512 Hover . | . . . . . . . . Flight . | . . . . . . . . Fastest Speed 115 | 120 120 240 160 160 240 115 130 Average Speed 206 | 120 195 240 213 211 246 156 130 Slowest Speed 1400 | 120 950 240 250 470 1400 240 130 Overloaded Moves . | . . . . . . . . Propulsion Burnouts . | . . . . . . . . Robots Hopped . | . . . . . . . . Cave-ins Triggered . | . . . . . . . . Exploration Rate (%) 64 | 3 98 98 94 39 93 36 55 Regions Visited 7 Branch Regions 2 Pre-discovered Areas 5 | . 2 2 . . . 1 . Known Exits Taken 2 | . . . . 1 . 1 . Unknown Exits Taken 4 | 1 1 1 1 . . . . Scrap Searched 7 | . . 1 6 . . . . Spaces Dug 73 | . 5 4 1 4 27 12 20 Terrain Destroyed 255 | . 10 19 8 45 119 24 30 Melee 2 | . . . . . 2 . . Projectile 50 | . 5 4 8 16 . 16 1 AOE 203 | . 5 15 . 29 117 8 29 Terrain Rammed . | . . . . . . . . Walls Destroyed . | . . . . . . . . Machines Disabled . | . . . . . . . . Actions | -11 -10 -10 -10 -8 -8 -8 -8 --------- Run | Yrd Mat Min Sub Mat Gar Mat Gar Total 6432 | 18 1037 651 1992 498 1078 492 666 Wait 238 | . 35 43 21 64 11 24 40 Move 5358 | 16 873 567 1828 303 893 366 512 Hop . | . . . . . . . . Pick Up 116 | . 24 7 35 14 16 13 7 Fast Attach 46 | 1 9 1 5 10 13 6 1 Attach 25 | . 2 . 7 9 5 1 1 Detach 4 | . . . 1 2 . . 1 Swap 69 | . 12 6 4 8 21 8 10 Drop 112 | . 20 9 25 17 12 23 6 Fire 364 | 1 57 17 61 68 58 40 62 Melee 50 | . . . . . 37 11 2 Ram . | . . . . . . . . Kick 1 | . 1 . . . . . . Crush 8 | . 4 1 . 3 . . . Escape Stasis 36 | . . . . . 12 . 24 Rewire . | . . . . . . . . Trap . | . . . . . . . . Miscellaneous 5 | . . . 5 . . . . Route ------- -11/Scrapyard -10/Materials (discovered 6 exits: [*Mat x3] / *Min x2 / *Sub) -10/Mines (discovered 4 exits: [*Mat x2] / [*Exi] / *Sub) -10/Subcaves (discovered 2 exits: *Mat x2) -8/Materials -8/Garrison (discovered 3 exits: *Mat x3) -8/Materials (discovered 2 exits: [*Sto] / Gar) -8/Garrison (discovered 2 exits: [*Fac x2]) History --------- Turn | Location | Event 1 | -11/Scrapyard | Discovered new exit (range 2) 25 | -11/Scrapyard | Entered Materials 127 | -10/Materials | Discovered new exit (range 12) 352 | -10/Materials | Build established: Mutant 485 | -10/Materials | Discovered new exit (range 12) 1147 | -10/Materials | Discovered new exit (range 15) 1351 | -10/Materials | Discovered new exit (range 8) 1592 | -10/Materials | Discovered new exit (range 3) 1672 | -10/Materials | Discovered new exit (range 13) 2012 | -10/Materials | Entered Mines 2054 | -10/Mines | Discovered new exit (range 5) 2224 | -10/Mines | Deemed a non-threat by the Exiles lab entrance 2224 | -10/Mines | Discovered new exit (range 5) 2273 | -10/Mines | Met a Derelict who couldn't figure out how to use a Trap Extractor 2514 | -10/Mines | Learned location of Zion (-6) 2715 | -10/Mines | Discovered new exit (range 6) 2794 | -10/Mines | Joined a pair of Derelicts in attacking an 0b10 outpost 3210 | -10/Mines | Learned Materials emergency access door positions 3480 | -10/Mines | Discovered new exit (range 5) 3489 | -10/Mines | Entered Subcaves 3572 | -10/Subcaves | A swath of the cavern ceiling suddenly collapsed 4302 | -10/Subcaves | Learned Materials terminal intel 4663 | -10/Subcaves | Visited Clippyterm 4770 | -10/Subcaves | Discovered new exit (range 16) 4800 | -10/Subcaves | Visited 4L-MR0's lab 4821 | -10/Subcaves | Found Powered Cannon 4968 | -10/Subcaves | Shifting Twisted Machinery released Sub. Power Source 5082 | -10/Subcaves | Shifting Twisted Machinery released Sub. Laser 5338 | -10/Subcaves | Disturbed a concealed Subdweller 5451 | -10/Subcaves | Core integrity fell below 50% 5501 | -10/Subcaves | Discovered new exit (range 12) 5519 | -10/Subcaves | Shifting Twisted Machinery released Mak. Laser 5550 | -10/Subcaves | Shifting Twisted Machinery released Mak. Kinetic Plating 5733 | -10/Subcaves | A swath of the cavern ceiling suddenly collapsed 7645 | -10/Subcaves | Entered Materials 7645 | -8/Materials | Evolved 4 slots: Propulsion x2, Utility x2 7647 | -8/Materials | Loaded intel: 12 terminal locations 8338 | -8/Materials | Garrison activated, responded to threat 8362 | -8/Materials | Build established: Scavenger-Mutant 8528 | -8/Materials | Destroyed 7 combat bots 8613 | -8/Materials | Identified exit to Garrison 8615 | -8/Materials | Entered Garrison 8684 | -8/Garrison | Triggered checkpoint 8830 | -8/Garrison | Installed Relay Interface Framework 8906 | -8/Garrison | Garrison Relay disabled 8995 | -8/Garrison | Triggered checkpoint 9026 | -8/Garrison | Triggered checkpoint 9049 | -8/Garrison | Destroyed 8 combat bots 9140 | -8/Garrison | Discovered new exit (range 8) 9260 | -8/Garrison | Triggered checkpoint 9472 | -8/Garrison | Triggered checkpoint 9591 | -8/Garrison | Triggered checkpoint 9613 | -8/Garrison | Garrison Relay disabled 9929 | -8/Garrison | Garrison Relay disabled 10002 | -8/Garrison | Discovered new exit (range 8) 10043 | -8/Garrison | Core integrity fell below 50% 10120 | -8/Garrison | Phase Generator disabled 10195 | -8/Garrison | Triggered checkpoint 10266 | -8/Garrison | Discovered new exit (range 14) 10491 | -8/Garrison | Rescued a captive Derelict 10533 | -8/Garrison | Garrison Relay disabled 10602 | -8/Garrison | Garrison Relay disabled 11150 | -8/Garrison | Entered Materials 11150 | -8/Materials | Accompanied by 1 ally 11313 | -8/Materials | Discovered new exit (range 5) 11924 | -8/Materials | Identified exit to Garrison 11926 | -8/Materials | Entered Garrison 12000 | -8/Garrison | Triggered checkpoint 12035 | -8/Garrison | Garrison Relay disabled 12103 | -8/Garrison | Triggered checkpoint 12158 | -8/Garrison | Triggered checkpoint 12180 | -8/Garrison | Garrison Relay disabled 12194 | -8/Garrison | Garrison Relay disabled 12283 | -8/Garrison | Discovered new exit (range 10) 12316 | -8/Garrison | Triggered checkpoint 12353 | -8/Garrison | Build established: Bothacker-Mutant 12388 | -8/Garrison | Garrison Relay disabled 12495 | -8/Garrison | Triggered checkpoint 12505 | -8/Garrison | Core integrity fell below 20% 12633 | -8/Garrison | Discovered new exit (range 8) 12646 | -8/Garrison | Rescued a captive Derelict 12648 | -8/Garrison | Rescued a captive Derelict 12695 | -8/Garrison | Triggered checkpoint 12817 | -8/Garrison | Triggered checkpoint 12829 | -8/Garrison | Triggered checkpoint 12852 | -8/Garrison | Destroyed self with Grenade Launcher Last Messages --------------- 12720_ Acquired 38 matter. 12722_ Acquired 2 matter. 12817_ Garrison Door breached. 12817_ Beams of light sweep through the air. An alarm sounds. 12821_ Acquired 10 matter. 12827_ S-10 Pest destroyed. 12829_ Beams of light sweep through the air. An alarm sounds. 12831_ C-30 ARC bursts open, deploying its payload. 12831_ S-10 Pest unfolds itself. 12831_ S-10 Pest destroyed. 12835_ Destroyed Flight Unit. 12835_ S-10 Pest destroyed. 12839_ G-47 Trooper destroyed. 12848_ S-10 Pest destroyed. 12850_ Lgt. Armor Plating destroyed. 12850_ Destroyed Lgt. Armor Plating. 12852_ Hvy. Ion Cannon destroyed. 12852_ Destroyed Hvy. Ion Cannon. 12852_ Grenade Launcher destroyed. 12852_ Destroyed Grenade Launcher. Map ----- +----------------------------------------------------+ | ???????????????# ###### #??????????????????????? | | ???????????????# #??????????????????????? | | ???????????????######## #??????????????????????? | | ??????????????????????# #??????????????????????? | | ??????????????????????# #??????????????????????? | | ??????????????????????# #??????????????????????? | | ??????????????????????# #??????? #???????????? | | ??????????????????????# ## ## #???????????? | | ??????????????????????# #???????????? | | ??????????????????????# * #???????????? | | ??????????????????????# %[= +???????????? | | ??????????????????????# ## ## #???????????? | | ????????????????????### ## * ##??????????? | | ????????????????????# % % ??????????? | | ????????????????????# [#?????????? | | ????????????????????# * ??????????? | | ?????#######????????# ! "???????????? | | ?????#""" "#????????###% [ #???????????? | | ###??## !#############= % [ # ##########??? | | "!#### !!! ! = !% =%* #??? | | != ! %[%= = % !!! ^ #??? | | ############ ###### = %" !%= ####### #??? | | ???????????# #????# g # ## ##?????# #??? | | ???????????#####????# # ## #??????# #??? | | ?????????????????????# l######## #??????# #??? | | ???????????????????????# @#??????# #??????# #??? | | ???????????????????????# #??????# #?????## #??? | | ???????????????????????# #??????# #?????# ###? | | ???????????????????????# #??????# #?????##/ #? | | ??###################### #??????# ########== ### | | ??# #??????# * [% | | ??# #??????# !=== | | ??# ######################??????###T###### % ### | | ??# #?????????????????????????????###????##*! ### | | ??# #???????????????????????????????????###= ##"# | | ??# #???????????????????????????????????# "# | | ??# #???????????????????????????????????# % "# | | ??# #???????????????????????????????????# "# | | ??# #???????????????????????????????????### ##"# | | ??# #?????????????????????????????????????# #?## | | ??# ###???????????????????????#####???????# #??? | | ??# #??????????????????????## ####????# #??? | | ??# < #??????????????????????# #!!###### #??? | | ??# #??????????????????????# / #??? | | ??# ###??????????????????????# # #!!#########??? | | ??# #????????????????????????######!!#??????????? | | ??# #?????????????????????????????#!!#??????????? | | ??# #?????????????????????????????#!!#??????????? | | ??# #?????????????????????????????####??????????? | | #?# #???????????????????????????????????????????? | +----------------------------------------------------+ Best States ------------- Heat Dissipation 67 Energy Generation 18 Energy Capacity 250 Matter Stores 300 Matter Capacity 300 Sight Range 16 Terrain Scan Density 10 Armor Coverage 800 Resistance: KI 10 Weapon Shielding 66 Evasion (%) 55 Recoil Reduction 4 Authchip Count 3 Item Schematics ----------------- Huge Storage Unit | -10/Materials | Hacked Robot Schematics ------------------ None Fabricated ------------ Nothing Alien Tech Used ----------------- None Achievements -------------- None Challenges ------------ None Game ------ Seed GhostUltimateThermoblaster Manual? 0 Play Time 01:28:25 Cumulative 247.9 hours Start 2024.04.30 @ 19:19:13 End 2024.04.30 @ 20:59:19 Sessions 1 Manual Loads 0 Difficulty Rogue Special Mode None Game No. 90 Rogue 88 Adventurer 2 Explorer 0 Win Type - Total 6 Types 4/0/0/1/0/0/0/1/0 Lore% 75 Gallery% 82 Achievement% 69 Wizard Run 0 Options --------- Layout 0 ASCII 0 Keyboard 0 Movement Numpad Keybinds 0 Fullscreen 2 Font 24/Smallcaps Map View 76x50 Zoom Use 0% Tactical HUD 1 Map Filters NONE Filters NONE Steam 1 RUN: 73634419-599f-493d-aeaf-7ae10404ffaa